Cogmind - Beta 17.1 @@@ ROGUE MODE // 2026.09.09 @ 15:09:47 Player: MOPO3 Result: Destroyed by Y-54 Guardian with Flak Gun Performance ------------- Evolutions (0) 0 Regions Visited (3) 600 Robots Destroyed (28) 140 Value Destroyed (636) 636 Prototype IDs (3) 60 Alien Tech Used (0) 0 Bonus (-12) -12 TOTAL SCORE: 1424 Bonus ------- Friendly Fire -12 Cogmind --------- Core Integrity 0/250 Matter 292/300 Energy 200/200 System Corruption 2% Temperature Cool (18) Movement Rolling (150) Ox4 Location -7/Recycling Parts ------- > --- POWER (1) -------- Subdweller Power Source > --- PROPULSION (2) --- Subdweller Monowheel > --- UTILITY (2) ------ Huge Storage Unit Light Armor Plating > --- WEAPON (2) ------- Battle Cannon Slug Cannon > --- INVENTORY (25) --- Light Treads Aluminum Leg Small Storage Unit Seismic Detector Advanced ECM Suite Scrap Shield Light Assault Rifle Light Assault Rifle Light Assault Rifle Light Assault Rifle Light Assault Rifle Light Assault Rifle Light Assault Rifle Light Assault Rifle Subdweller Machine Gun Light Cannon Grenade Launcher Scrap Shield Fragment (50) Scrap Shield Fragment (48) Scrap Shield Fragment (46) Scrap Shield Fragment (45) Scrap Shield Fragment (35) Peak State ------------ > --- POWER ------------ Subdweller Power Source > --- PROPULSION ------- Subdweller Monowheel Subdweller Monowheel > --- UTILITY ---------- Huge Storage Unit Seismic Detector > --- WEAPON ----------- Battle Cannon Slug Cannon > --- INVENTORY -------- Light Ion Engine Subdweller Power Source Light Treads Light Treads Aluminum Leg Aluminum Leg Compact Wheel Small Storage Unit Seismic Detector Scrap Shield Light Assault Rifle Light Assault Rifle Light Assault Rifle Light Assault Rifle Light Assault Rifle Light Assault Rifle Light Assault Rifle Light Assault Rifle Subdweller Machine Gun Grenade Launcher Scrap Shield Fragment Scrap Shield Fragment Scrap Shield Fragment [Rating: 17] Favorites ----------- Power Subdweller Power Source Engine Subdweller Power Source Propulsion Light Treads Treads Light Treads Wheel Subdweller Monowheel Utility Huge Storage Unit Device Seismic Detector Storage Huge Storage Unit Protection Light Armor Plating Weapon Light Assault Rifle Energy Gun Medium Laser Ballistic Gun Light Assault Rifle Ballistic Cannon Light Cannon Build | -11 -10 -10 -7 ------- Run | Yrd Mat Sub Rec Slots Evolved . | . . . . Power . | . . . . Propulsion . | . . . . Utility . | . . . . Weapon . | . . . . Parts Attached 25 | 8 5 12 . Power 4 | 2 . 2 . Engine 4 | 2 . 2 . Core . | . . . . Reactor . | . . . . Propulsion 7 | 2 . 5 . Treads 3 | 2 . 1 . Leg . | . . . . Wheel 4 | . . 4 . Hover . | . . . . Flight . | . . . . Utility 4 | 2 1 1 . Device 1 | 1 . . . Storage 2 | 1 1 . . Processor . | . . . . Hackware . | . . . . Protection 1 | . . 1 . Artifact . | . . . . Weapon 10 | 2 4 4 . Energy Gun 1 | 1 . . . Energy Cannon . | . . . . Ballistic Gun 5 | 1 2 2 . Ballistic Cannon 4 | . 2 2 . Launcher . | . . . . Special Weapon . | . . . . Impact Weapon . | . . . . Slashing Weapon . | . . . . Piercing Weapon . | . . . . Special Melee Weapon . | . . . . Unidentified Prototypes . | . . . . Parts Lost 4 | . . 3 1 Power . | . . . . Propulsion 2 | . . 1 1 Utility . | . . . . Weapon 2 | . . 2 . Highest Loss Streak 3 | . . 3 1 To Critical Strikes 1 | . . 1 . Average Backups 13 | 1 8 16 18 Power . | . . . . Propulsion 2 | . 1 3 3 Utility 2 | . 1 2 3 Weapon 7 | . 4 9 11 Tool/Special . | . . . . Unused Backups 12 | . . . 12 Power . | . . . . Propulsion 2 | . . . 2 Utility 3 | . . . 3 Weapon 7 | . . . 7 Tool/Special . | . . . . Average Slot Usage (%) 99 | . 99 99 100 Engine 14 | . 14 14 14 Treads 19 | . 28 19 . Wheel 7 | . . 8 28 Device 12 | . 14 13 . Storage 14 | . 14 14 14 Protection 1 | . . . 14 Ballistic Gun 17 | . 16 22 . Ballistic Cannon 10 | . 11 5 28 Peak Build Rating 17 | 7 8 17 17 Average Rating 10 | 5 7 10 16 On Entrance 8 | . 7 8 17 Avg Prop Armor Cover (%) . | . . . . Naked Turns . | . . . . Heaviest Build 98 | 14 90 98 98 Greatest Support 40 | 40 40 40 40 Greatest Overweight (x) 4 | . 2 4 4 Average Overweight (x) 1 | . 1 2 2 Largest Inventory Capacity 25 | 8 25 25 25 Average Capacity 23 | 6 21 25 25 Most Carried 25 | 2 15 25 25 Average Carried 15 | 1 8 17 24 Final Capacity 25 | 8 25 25 25 Final Carried 25 | 2 14 25 23 Class Distribution -------------------- 100% | Mutant Dominant Class ---------------- Mutant | -10/Materials Mutant | -10/Subcaves Mutant | -7/Recycling Resources | -11 -10 -10 -7 ----------- Run | Yrd Mat Sub Rec Matter Collected 957 | 274 254 424 5 Remotely . | . . . . Salvage Created 727 | 34 497 196 . Parts 56 | 6 36 14 . Haulers Intercepted 1 | . 1 . . Recyclers Shooed 3 | 1 2 . . Parts Field Recycled . | . . . . Retrieved Matter . | . . . . Parts Self-Destructed 22 | . . 22 . Prevented . | . . . . Parts Restored . | . . . . Kills | -11 -10 -10 -7 ------- Run | Yrd Mat Sub Rec Combat Hostiles Destroyed 18 | . 13 5 . Guns 7 | . 5 2 . Cannons 11 | . 8 3 . Classes Destroyed 9 | 1 6 2 . Builder 1 | . 1 . . Tunneler 2 | 2 . . . Hauler 1 | . 1 . . Recycler 3 | . 3 . . Turret 2 | . . 2 . Watcher 1 | . 1 . . Swarmer 6 | . 6 . . Grunt 7 | . 7 . . Subdweller 5 | . . 5 . Best Kill Streak 8 | 1 8 2 . Combat Bots Only 6 | . 6 2 . Max Kills in Single Turn 2 | 1 2 1 . Gunslinging . | . . . . Exploded . | . . . . Melee . | . . . . Uniques/NPCs Destroyed . | . . . . Combat | -11 -10 -10 -7 -------- Run | Yrd Mat Sub Rec Hostile Shots Fired 115 | . 53 53 9 Missed 34 | . 10 21 3 Hits 81 | . 43 32 6 Projectile 81 | . 43 32 6 Critical Strikes 2 | . 1 1 . Damage Taken 1183 | . 451 664 68 Core 252 | . 129 118 5 Absorbed by Shields . | . . . . Regen/Repaired (Parts) 35 | . 35 . . Core Remaining (%) 100 | 100 . . . Volleys Fired 85 | 4 51 30 . Largest 2 | 2 2 2 . Hottest 73 | 70 60 73 . Shots Fired 170 | 8 102 60 . Gun 85 | 8 40 37 . Cannon 85 | . 62 23 . Launcher . | . . . . Special . | . . . . Kinetic 166 | 4 102 60 . Thermal 4 | 4 . . . Explosive . | . . . . Electromagnetic . | . . . . Robot Hit Streak 17 | 4 17 7 . Robot Miss Streak 3 | 1 2 3 . Penetration Max . | . . . . Secondary Targets . | . . . . Shots Hit Robots 119 | 6 73 40 . Core Hits 49 | 4 32 11 2 Critical Kills 3 | . 1 2 . Critical Parts Destroyed 1 | . 1 . . Critical Strikes 9 | 1 5 3 . Burn 1 | 1 . . . Destroy 4 | . 2 2 . Blast 4 | . 3 1 . Melee Attacks . | . . . . Impact . | . . . . Slashing . | . . . . Piercing . | . . . . Sneak Attacks . | . . . . Combat Hostiles . | . . . . Follow-up Attacks . | . . . . Damage Inflicted 1627 | 65 1016 502 44 Guns 542 | 64 230 248 . Cannons 1030 | . 776 254 . Explosions . | . . . . Melee . | . . . . Ramming 55 | 1 10 . 44 Kinetic 1534 | 26 1006 502 . Thermal 38 | 38 . . . Explosive . | . . . . Electromagnetic . | . . . . Impact . | . . . . Slashing . | . . . . Piercing . | . . . . Highest Corruption 2 | . . . 2 Average Corruption 2 | . . . 2 Corruption Purged . | . . . . Corruption Blocked . | . . . . Effects 1 | . . . 1 Heat Flow Errors 1 | . . . 1 Overload Shots . | . . . . Overflow Damage 7 | . 7 . . Projectiles 7 | . 7 . . Explosions . | . . . . Melee . | . . . . Knockbacks 10 | . 8 2 . Impact . | . . . . Kinetic 9 | . 7 2 . Secondary 1 | . 1 . . Self-Inflicted Damage 21 | . . . 21 Shots . | . . . . Rammed 7 | 1 2 . 4 Targets Rammed 7 | 1 2 . 4 Kicked . | . . . . Crushed . | . . . . Highest Temperature 145 | 40 90 . 145 Average Temperature 25 | 19 22 . 77 Received Heat Transfer 243 | . 159 66 18 Siege Activations . | . . . . Martial Activations . | . . . . Shielding Activations . | . . . . Robots Disrupted . | . . . . Combat Hostiles . | . . . . Robots Corrupted . | . . . . Combat Hostiles . | . . . . Parts Fried . | . . . . Impact Corruptions . | . . . . Robots Melted . | . . . . Combat Hostiles . | . . . . Parts Melted . | . . . . Heat Transferred 185 | 185 . . . Parts Sabotaged . | . . . . Parts Stolen . | . . . . Parts Stripped . | . . . . Power Chain Reactions . | . . . . Alert | -11 -10 -10 -7 ------- Run | Yrd Mat Sub Rec Maximum Alert Level 1 | . 1 . . Low Security (%) 95 | 100 93 . 100 Level 1 4 | . 6 . . Level 2 . | . . . . Level 3 . | . . . . Level 4 . | . . . . Level 5 . | . . . . High Security . | . . . . Max Security . | . . . . Peak Influence 224 | 5 224 . 24 Initial 24 | . . . 24 Average 63 | 1 90 . 1 Influence Increases 514 | 10 449 55 . Destroy 0b10 Robot/C 300 | . 260 40 . Destroy 0b10 Robot/NC 40 | 10 30 . . Destroy Leader 64 | . 64 . . Successful Hack 4 | . 4 . . Disable Machine 15 | . 15 . . Destroy Structure 1 | . 1 . . Lose Combat Pursuer 90 | . 75 15 . Influence Decreases 514 | 10 328 125 51 Entered New Map 86 | . . 59 27 Time Decay 428 | 10 328 66 24 Squads Dispatched 3 | . 3 . . Investigation 3 | . 3 . . Extermination . | . . . . Reinforcement . | . . . . Assault . | . . . . Garrison . | . . . . Intercept . | . . . . Searches Triggered . | . . . . Construction Impeded . | . . . . Haulers Reinforced . | . . . . Active Scanning Responses . | . . . . Cargo Convoy Interrupts . | . . . . Stealth | -11 -10 -10 -7 --------- Run | Yrd Mat Sub Rec Distress Signals . | . . . . Communications Jammed . | . . . . Distress Signals . | . . . . Times Spotted 33 | . 25 7 1 Peak Tracking Total 6 | . 6 2 . Tactical Retreats 3 | . 2 1 . Traps | -11 -10 -10 -7 ------- Run | Yrd Mat Sub Rec Traps Triggered 5 | . 3 2 . Indirectly . | . . . . Trap Hack Attempts . | . . . . Triggered . | . . . . Disarmed . | . . . . Reprogrammed . | . . . . Reused . | . . . . Traps Extracted . | . . . . Installed . | . . . . Triggered . | . . . . Machines | -11 -10 -10 -7 ---------- Run | Yrd Mat Sub Rec Machines Disabled 2 | . 1 1 . Max in Single Turn 1 | . 1 1 . Machines Repaired . | . . . . Machines Dismantled . | . . . . Machines Sabotaged . | . . . . Overloaded Fab Kills . | . . . . Hacking | -11 -10 -10 -7 --------- Run | Yrd Mat Sub Rec Machines Accessed 14 | . 5 1 8 Terminals 9 | . 4 . 5 Fabricators . | . . . . Repair Stations 1 | . 1 . . Recycling Units 3 | . . . 3 Scanalyzers . | . . . . Garrison Access . | . . . . Total Hacks 29 | . 16 3 10 Successful 12 | . 7 3 2 Failed 17 | . 9 . 8 Catastrophic 4 | . 1 . 3 Database Lockouts . | . . . . Manual 13 | . 11 . 2 Terminals 18 | . 13 . 5 Fabricators . | . . . . Repair Stations 3 | . 3 . . Recycling Units 5 | . . . 5 Scanalyzers . | . . . . Garrison Access . | . . . . Terminal Hacks 4 | . 1 3 . Record 3 | . . 3 . Prototype ID Bank 1 | . 1 . . Fabricator Hacks . | . . . . Repair Station Hacks 2 | . 2 . . Scan Component 1 | . 1 . . Repair 1 | . 1 . . Recycling Unit Hacks 2 | . . . 2 Retrieve Components 2 | . . . 2 Scanalyzer . | . . . . Garrison Access Hacks . | . . . . Unauthorized Hacks 4 | . 4 . . Terminals 4 | . 4 . . Botnet 1 | . 1 . . Skim 3 | . 3 . . Fabricators . | . . . . Repair Stations . | . . . . Recycling Units . | . . . . Scanalyzers . | . . . . Garrison Access . | . . . . Data Cores Recovered . | . . . . Used . | . . . . Hacking Detections 12 | . 5 . 7 Full Trace Events 1 | . 1 . . Feedback Events . | . . . . Feedback Blocked . | . . . . Robot Schematics Acquired . | . . . . Robots Built . | . . . . Authchips . | . . . . Time . | . . . . Total Robot Build Rating . | . . . . Part Schematics Acquired . | . . . . Parts Built . | . . . . Authchips . | . . . . Time . | . . . . Total Part Build Rating . | . . . . Part Studies Acquired . | . . . . Parts Repaired 1 | . 1 . . Time 26 | . 26 . . Parts Recycled . | . . . . Recycled Matter . | . . . . Retrieved Matter . | . . . . Retrieved Components 3 | . . . 3 Parts Scanalyzed . | . . . . Part Schematics Acquired . | . . . . Parts Damaged . | . . . . Bothacking | -11 -10 -10 -7 ------------ Run | Yrd Mat Sub Rec Used RIF Installer . | . . . . Robots Hacked . | . . . . Non-combat . | . . . . Combat . | . . . . Robot Hacks Applied . | . . . . Relay Couplers Released . | . . . . Fabnet Peak Effective % . | . . . . Robots Rewired . | . . . . Allies Hacked . | . . . . Hacks Repelled . | . . . . Allies | -11 -10 -10 -7 -------- Run | Yrd Mat Sub Rec Total Allies . | . . . . Largest Group . | . . . . Highest-Rated Group . | . . . . Highest-Rated Ally . | . . . . Total Orders . | . . . . Ally Attacks . | . . . . Total Damage . | . . . . Kills . | . . . . Allies Corrupted . | . . . . Allies Melted . | . . . . Intel | -11 -10 -10 -7 ------- Run | Yrd Mat Sub Rec Active Infowar (turns) 3667 | 11 1477 2179 . Seismic 3667 | 11 1477 2179 . Robot Analysis Total . | . . . . Derelict Logs Recovered 1 | . . 1 . Drone Launches . | . . . . Drone Recoveries . | . . . . Exploration | -11 -10 -10 -7 ------------- Run | Yrd Mat Sub Rec Turns Passed 4335 | 103 1477 2226 529 Spaces Moved 1809 | 52 418 940 399 Core 4 | 4 . . . Treads 925 | 48 418 459 . Legs . | . . . . Wheels 880 | . . 481 399 Hover . | . . . . Flight . | . . . . Fastest Speed 50 | 50 160 129 129 Average Speed 212 | 151 277 222 129 Slowest Speed 320 | 160 320 320 150 Overloaded Moves . | . . . . Propulsion Burnouts . | . . . . Robots Hopped . | . . . . Potential Cave-ins . | . . . . Cave-ins Triggered . | . . . . Exploration Rate (%) 51 | 4 85 46 70 Regions Visited 3 Branch Regions 2 Pre-discovered Areas . | . . . . Known Exits Taken . | . . . . Unknown Exits Taken 3 | 1 1 1 . Scrap Searched 3 | . . 3 . Spaces Dug . | . . . . Terrain Destroyed 5 | . . 5 . Melee . | . . . . Projectile 5 | . . 5 . AOE . | . . . . Terrain Rammed . | . . . . Walls Destroyed . | . . . . Machines Disabled . | . . . . Actions | -11 -10 -10 -7 --------- Run | Yrd Mat Sub Rec Total 2125 | 65 636 1015 409 Wait 153 | . 139 14 . Move 1807 | 52 417 939 399 Hop . | . . . . Pick Up 29 | 1 16 11 1 Fast Attach 9 | 7 . 2 . Attach 5 | . 1 4 . Detach 2 | . . 2 . Swap 17 | 1 6 8 2 Drop 11 | . 4 4 3 Fire 85 | 4 51 30 . Melee . | . . . . Ram 4 | . . . 4 Kick . | . . . . Crush 2 | . 2 . . Escape Stasis . | . . . . Rewire 1 | . . 1 . Trap . | . . . . Miscellaneous . | . . . . Route ------- -11/Scrapyard -10/Materials (discovered 4 exits: [*Mat x2] / [*Min] / *Sub) -10/Subcaves -7/Recycling History --------- Turn | Location | Event 35 | -11/Scrapyard | Discovered new exit (range 16) 104 | -11/Scrapyard | Entered Materials 304 | -10/Materials | Build established: Mutant 522 | -10/Materials | Discovered new exit (range 13) 953 | -10/Materials | Discovered new exit (range 12) 1271 | -10/Materials | Repaired Lgt. Cannon 1336 | -10/Materials | Discovered new exit (range 14) 1510 | -10/Materials | Core integrity fell below 50% 1569 | -10/Materials | Discovered new exit (range 3) 1581 | -10/Materials | Entered Subcaves 1582 | -10/Subcaves | Approached by a straggling Scientist 2536 | -10/Subcaves | A swath of the cavern ceiling suddenly collapsed 3121 | -10/Subcaves | Lost 3 parts (1n2w) 3274 | -10/Subcaves | A swath of the cavern ceiling suddenly collapsed 3381 | -10/Subcaves | Disturbed a concealed Subdweller 3576 | -10/Subcaves | Visited Clippyterm 3580 | -10/Subcaves | Learned Factory stockpile data 3611 | -10/Subcaves | Core integrity fell below 20% 3770 | -10/Subcaves | Discovered new exit (range 10) 3807 | -10/Subcaves | Entered Recycling 4336 | -7/Recycling | Destroyed by Y-54 Guardian with Flak Gun Last Messages --------------- 03876_ Acquired Adv. ECM Suite. 03929_ Connecting with Recycling Unit... 03965_ Connecting with Terminal... 03970_ Slammed into R-06 Scavenger. 04030_ Connecting with Recycling Unit... 04055_ Connecting with Terminal... 04234_ Slammed into R-06 Scavenger. 04234_ Destabilizing: System corrupted (+2). 04242_ Sub. Power Source shoots sparks and powers down. 04247_ System corrupted: Heat flow error (+162). 04269_ Sub. Monowheel shoots sparks and powers down. 04274_ Dropped Broken Sub. Monowheel. 04274_ R-06 Scavenger collects Broken Sub. Monowheel. 04274_ Dropped Broken Sub. Power Source. 04277_ R-06 Scavenger collects Broken Sub. Power Source. 04307_ Slammed into R-06 Scavenger. 04310_ Acquired 2 matter. 04311_ Acquired 3 matter. 04336_ Y-54 Guardian springs to life. 04336_ Com. Wheel destroyed. Map ----- +----------------------------------------------------+ | | | | | | | | | | | ?????????????????????????????????????????????????? | | ?????????????????????????????????????????????????? | | ?????????????????????????????????????????????????? | | ?????????????????????????????????????????????????? | | ?????????????????????????????????????????????????? | | ?????????????????????????????????????????????????? | | ?????????????????????????????????????????????????? | | ?????????????????????????????????????????????????? | | ?????????????????????????????????????????????????? | | ?????????????????????????????????????????????????? | | ?????????????????????????????????????????????????? | | ?????????????????????????????????????????????????? | | ?????????????????????????????????????????????????? | | ??###############????????????????????????????????? | | ??#* ! [%#????????????????????????????????? | | ??#[ ! #####????????????????????????????? | | ### !% ! + ????????????????????????????? | | + % ! ! !# ?#+##??????????????????????? | | ############?#+## ?# ??????????????????????? | | ?????????????# ## #??????????????????????? | | #########????# @#??????????????????????? | | #????# #????????????##????????? | | """ #????# ############# #????????? | | """ #???#Y ## #????????? | | """ #???## """ ## #????????? | | #????# """ ## #????????? | | "" """ #????# """ ## #????????? | | "Y """ #????# ## #????????? | | "" """ #????# ## #????????? | | #????# ## #????????? | | #######+#????# ## #????????? | | ??????# #????# ## #????????? | | ??????# #????#### ## #????????? | | ??????# #???????# "" ## #????????? | | ??????# #??###### "" ## #????????? | | ??????# #??#"""## T" #######+#######????????? | | ####### ####"Y"## "" #???# #????????????? | | *! "" #???# #????????????? | | ##### #????????????? | | #????????????? | | ####+############+############# #????????????? | | #?# #?????## ##????????????? | | """" #?# #????### #?????????????? | | """" #?# #?#### # #?????????????? | | """" ## #?# # ###???????????? | +----------------------------------------------------+ Best States ------------- Heat Dissipation 25 Energy Generation 15 Energy Capacity 250 Matter Stores 300 Matter Capacity 300 Sight Range 16 Terrain Scan Density 10 Armor Coverage 150 Evasion (%) 40 Recoil Reduction 2 Item Schematics ----------------- None Robot Schematics ------------------ None Fabricated ------------ Nothing Repaired ---------- Lgt. Cannon | 70% | -10/Materials Studied --------- None Alien Tech Used ----------------- None Achievements -------------- None Challenges ------------ None Game ------ Seed LongswordDrainedNeutralizer Manual? 0 Play Time 00:33:17 Cumulative 12.4 hours Start 2026.09.08 @ 15:20:42 End 2026.09.09 @ 15:09:47 Sessions 3 Manual Loads 0 Difficulty Rogue Special Mode None Game No. 16 Rogue 16 Adventurer 0 Explorer 0 Win Type - Total 1 Types 1/0/0/0/0/0/0/0/0/0 Lore% 10 Gallery% 20 Achievement% 23 Wizard Run 0 Options --------- Layout 0 ASCII 0 Keyboard 0 Movement Numpad Keybinds 0 Fullscreen 1 Font 18/Terminus Map View 76x50 Zoom Use 0% Tactical HUD 1 Map Filters NONE Filters NONE Steam 1 RUN: 9ea5dccf-28dd-43dd-ab9a-38b15c794868